Cogmind - Beta 14 @@@ ROGUE MODE // 2024.11.10 @ 13:37:07 Player: MarKhan Result: Destroyed by G-34 Mercenary with Small Laser Performance ------------- Evolutions (0) 0 Regions Visited (1) 200 Robots Destroyed (12) 60 Value Destroyed (166) 166 Prototype IDs (0) 0 Alien Tech Used (0) 0 Bonus (8) 8 TOTAL SCORE: 434 Bonus ------- High Alert Combat Kills 8 Cogmind --------- Core Integrity 0/250 Matter 218/300 Energy 100/100 System Corruption 0% Temperature Cool (7) Movement Core (50) Location -10/Materials Parts ------- > --- POWER (1) -------- (None) > --- PROPULSION (2) --- (None) > --- UTILITY (2) ------ Visual Processing Unit Terrain Scan Processor > --- WEAPON (2) ------- Light Cannon > --- INVENTORY (5) ---- Light Ion Engine Weight Redist. System Structural Scanner Improved Terrain Scanner Seismic Detector Peak State ------------ > --- POWER ------------ (None) > --- PROPULSION ------- (None) > --- UTILITY ---------- Visual Processing Unit Terrain Scan Processor > --- WEAPON ----------- Light Cannon > --- INVENTORY -------- Light Ion Engine Weight Redist. System Structural Scanner Improved Terrain Scanner Seismic Detector [Rating: 5] Favorites ----------- Power None Propulsion None Utility Terrain Scan Processor Device Seismic Detector Processor Terrain Scan Processor Weapon Assault Rifle Ballistic Gun Assault Rifle Ballistic Cannon Light Cannon Build | -11 -10 ------- Run | Yrd Mat Slots Evolved . | . . Power . | . . Propulsion . | . . Utility . | . . Weapon . | . . Parts Attached 6 | 2 4 Power . | . . Engine . | . . Core . | . . Reactor . | . . Propulsion . | . . Treads . | . . Leg . | . . Wheel . | . . Hover . | . . Flight . | . . Utility 4 | 1 3 Device 1 | 1 . Storage . | . . Processor 3 | . 3 Hackware . | . . Protection . | . . Artifact . | . . Weapon 2 | 1 1 Energy Gun . | . . Energy Cannon . | . . Ballistic Gun 1 | 1 . Ballistic Cannon 1 | . 1 Launcher . | . . Special Weapon . | . . Impact Weapon . | . . Slashing Weapon . | . . Piercing Weapon . | . . Special Melee Weapon . | . . Unidentified Prototypes . | . . Parts Lost 1 | . 1 Power . | . . Propulsion . | . . Utility . | . . Weapon 1 | . 1 Highest Loss Streak 1 | . 1 To Critical Strikes . | . . Average Slot Usage (%) 37 | . 37 Device 3 | . 3 Processor 21 | . 21 Ballistic Gun 7 | . 7 Ballistic Cannon 6 | . 6 Peak Build Rating 5 | 2 5 Average Rating 3 | 1 3 On Entrance 1 | . 2 Naked Turns . | . . Heaviest Build 3 | 3 3 Greatest Support 3 | 3 3 Greatest Overweight (x) . | . . Average Overweight (x) . | . . Largest Inventory Capacity 5 | 5 5 Average Capacity 5 | 5 5 Most Carried 5 | 2 5 Average Carried 3 | . 4 Final Capacity 5 | 5 5 Final Carried 5 | 2 5 Class Distribution -------------------- 100% | Mutant Dominant Class ---------------- Mutant | -10/Materials Resources | -11 -10 ----------- Run | Yrd Mat Matter Collected 367 | 256 111 Remotely . | . . Salvage Created 252 | 69 183 Parts 24 | 6 18 Haulers Intercepted 1 | . 1 Recyclers Shooed . | . . Parts Field Recycled . | . . Retrieved Matter . | . . Parts Self-Destructed . | . . Prevented . | . . Kills | -11 -10 ------- Run | Yrd Mat Combat Hostiles Destroyed 3 | . 3 Cannons 3 | . 3 Classes Destroyed 6 | 1 5 Worker 2 | . 2 Builder 2 | . 2 Tunneler 3 | 3 . Hauler 1 | . 1 Watcher 1 | . 1 Grunt 3 | . 3 Best Kill Streak 3 | 3 3 Combat Bots Only 1 | . 1 Max Kills in Single Turn 1 | 1 1 Gunslinging . | . . Exploded . | . . Melee . | . . Uniques/NPCs Destroyed . | . . Combat | -11 -10 -------- Run | Yrd Mat Hostile Shots Fired 69 | . 69 Missed 34 | . 34 Damage Taken 466 | . 466 Core 256 | . 256 Absorbed by Shields . | . . Core Remaining (%) 100 | 100 . Volleys Fired 53 | 13 40 Largest 1 | 1 1 Hottest 35 | 20 35 Shots Fired 53 | 13 40 Gun 23 | 13 10 Cannon 30 | . 30 Launcher . | . . Special . | . . Kinetic 53 | 13 40 Thermal . | . . Explosive . | . . Electromagnetic . | . . Robot Hit Streak 4 | 2 4 Robot Miss Streak 3 | 3 2 Penetration Max . | . . Secondary Targets . | . . Shots Hit Robots 32 | 6 26 Core Hits 14 | 3 11 Critical Kills . | . . Critical Parts Destroyed . | . . Critical Strikes 2 | . 2 Blast 2 | . 2 Melee Attacks . | . . Impact . | . . Slashing . | . . Piercing . | . . Sneak Attacks . | . . Combat Hostiles . | . . Follow-up Attacks . | . . Damage Inflicted 528 | 77 451 Guns 171 | 77 94 Cannons 357 | . 357 Explosions . | . . Melee . | . . Ramming . | . . Kinetic 528 | 77 451 Thermal . | . . Explosive . | . . Electromagnetic . | . . Impact . | . . Slashing . | . . Piercing . | . . Highest Corruption . | . . Average Corruption . | . . Corruption Purged . | . . Corruption Blocked . | . . Overload Shots . | . . Overflow Damage . | . . Projectiles . | . . Explosions . | . . Melee . | . . Knockbacks 6 | . 6 Impact . | . . Kinetic 6 | . 6 Secondary . | . . Self-Inflicted Damage . | . . Shots . | . . Rammed . | . . Targets Rammed . | . . Kicked . | . . Crushed . | . . Highest Temperature 9 | . 9 Average Temperature 3 | . 3 Received Heat Transfer 246 | . 246 Siege Activations . | . . Robots Corrupted . | . . Combat Hostiles . | . . Parts Fried . | . . Impact Corruptions . | . . Robots Melted . | . . Combat Hostiles . | . . Parts Melted . | . . Heat Transferred . | . . Parts Sabotaged . | . . Parts Stolen . | . . Parts Stripped . | . . Power Chain Reactions . | . . Alert | -11 -10 ------- Run | Yrd Mat Peak Influence 488 | 15 488 Initial 9 | . 9 Average 216 | 3 254 Maximum Alert Level 2 | . 2 Low Security (%) 41 | 100 31 Level 1 46 | . 54 Level 2 11 | . 13 Level 3 . | . . Level 4 . | . . Level 5 . | . . High Security . | . . Max Security . | . . Squads Dispatched 3 | . 3 Investigation 2 | . 2 Extermination . | . . Reinforcement 1 | . 1 Assault . | . . Garrison . | . . Intercept . | . . Searches Triggered . | . . Construction Impeded . | . . Haulers Reinforced . | . . Active Scanning Responses . | . . Cargo Convoy Interrupts . | . . Stealth | -11 -10 --------- Run | Yrd Mat Distress Signals 3 | . 3 Communications Jammed . | . . Distress Signals . | . . Times Spotted 23 | . 23 Peak Tracking Total 7 | . 7 Tactical Retreats 5 | . 5 Traps | -11 -10 ------- Run | Yrd Mat Traps Triggered 1 | . 1 Indirectly . | . . Trap Hack Attempts . | . . Triggered . | . . Disarmed . | . . Reprogrammed . | . . Reused . | . . Traps Extracted . | . . Installed . | . . Triggered . | . . Machines | -11 -10 ---------- Run | Yrd Mat Machines Disabled . | . . Max in Single Turn . | . . Machines Repaired . | . . Machines Dismantled . | . . Machines Sabotaged . | . . Overloaded Fab Kills . | . . Hacking | -11 -10 --------- Run | Yrd Mat Machines Accessed 10 | . 10 Terminals 8 | . 8 Fabricators . | . . Repair Stations . | . . Recycling Units 2 | . 2 Scanalyzers . | . . Garrison Access . | . . Total Hacks 24 | . 24 Successful 15 | . 15 Failed 9 | . 9 Catastrophic 3 | . 3 Database Lockouts . | . . Manual 19 | . 19 Terminals 21 | . 21 Fabricators . | . . Repair Stations . | . . Recycling Units 3 | . 3 Scanalyzers . | . . Garrison Access . | . . Terminal Hacks 3 | . 3 Level Access Points 1 | . 1 Terminal Index 1 | . 1 Locate Traps 1 | . 1 Fabricator Hacks . | . . Repair Station Hacks . | . . Recycling Unit Hacks . | . . Scanalyzer . | . . Garrison Access Hacks . | . . Unauthorized Hacks 12 | . 12 Terminals 9 | . 9 Botnet 3 | . 3 Skim 6 | . 6 Fabricators . | . . Repair Stations . | . . Recycling Units 3 | . 3 Recyclers 1 | . 1 Tunnel 2 | . 2 Scanalyzers . | . . Garrison Access . | . . Data Cores Recovered . | . . Used . | . . Hacking Detections 9 | . 9 Full Trace Events 1 | . 1 Feedback Events . | . . Feedback Blocked . | . . Robot Schematics Acquired . | . . Robots Built . | . . Authchips . | . . Time . | . . Total Robot Build Rating . | . . Part Schematics Acquired . | . . Parts Built . | . . Authchips . | . . Time . | . . Total Part Build Rating . | . . Parts Repaired . | . . Time . | . . Parts Recycled . | . . Recycled Matter . | . . Retrieved Matter . | . . Retrieved Components . | . . Parts Scanalyzed . | . . Part Schematics Acquired . | . . Parts Damaged . | . . Bothacking | -11 -10 ------------ Run | Yrd Mat Used RIF Installer . | . . Robots Hacked . | . . Non-combat . | . . Combat . | . . Robot Hacks Applied . | . . Relay Couplers Released . | . . Fabnet Peak Effective % . | . . Robots Rewired . | . . Allies Hacked . | . . Hacks Repelled . | . . Allies | -11 -10 -------- Run | Yrd Mat Total Allies . | . . Largest Group . | . . Highest-Rated Group . | . . Highest-Rated Ally . | . . Total Orders . | . . Ally Attacks . | . . Total Damage . | . . Kills . | . . Allies Corrupted . | . . Allies Melted . | . . Intel | -11 -10 ------- Run | Yrd Mat Robot Analysis Total . | . . Derelict Logs Recovered . | . . Drone Launches . | . . Drone Recoveries . | . . Exploration | -11 -10 ------------- Run | Yrd Mat Turns Passed 431 | 65 366 Spaces Moved 590 | 67 523 Core 590 | 67 523 Treads . | . . Legs . | . . Wheels . | . . Hover . | . . Flight . | . . Fastest Speed 50 | 50 50 Average Speed 50 | 50 50 Slowest Speed 50 | 50 50 Overloaded Moves . | . . Propulsion Burnouts . | . . Robots Hopped . | . . Cave-ins Triggered . | . . Exploration Rate (%) 41 | 3 80 Regions Visited 1 Branch Regions . Pre-discovered Areas 3 | . 3 Known Exits Taken . | . . Unknown Exits Taken 1 | 1 . Scrap Searched . | . . Spaces Dug . | . . Terrain Destroyed . | . . Melee . | . . Projectile . | . . AOE . | . . Terrain Rammed . | . . Walls Destroyed . | . . Machines Disabled . | . . Actions | -11 -10 --------- Run | Yrd Mat Total 671 | 83 588 Wait 15 | . 15 Move 589 | 66 523 Hop . | . . Pick Up 5 | 2 3 Fast Attach 6 | 2 4 Attach . | . . Detach 2 | . 2 Swap . | . . Drop 1 | . 1 Fire 53 | 13 40 Melee . | . . Ram . | . . Kick . | . . Crush . | . . Escape Stasis . | . . Rewire . | . . Trap . | . . Miscellaneous . | . . Route ------- -11/Scrapyard -10/Materials (discovered 3 exits: *Mat x3) History --------- Turn | Location | Event 4 | -11/Scrapyard | Discovered new exit (range 15) 66 | -11/Scrapyard | Entered Materials 130 | -10/Materials | Discovered new exit (range 14) 173 | -10/Materials | Identified exit to Materials 309 | -10/Materials | Core integrity fell below 50% 310 | -10/Materials | Build established: Mutant 390 | -10/Materials | Core integrity fell below 20% 420 | -10/Materials | Learned location of Mines (-10) 432 | -10/Materials | Destroyed by G-34 Mercenary with Small Laser Last Messages --------------- 00377_ Connecting with Terminal... >>Trojan(Skim) Trojan loaded successfully. Testing... Terminal linked with 4 systems. Skimming routine engaged. Thanks from A0-MCA. 00380_ W-16 Scout sends out distress signal. 00382_ G-34 Mercenary destroyed. 00385_ K-01 Serf collects debris. 00391_ W-16 Scout destroyed. 00392_ Acquired 13 matter. 00394_ Discarded Signal Interpreter. 00394_ Acquired Visual Processing Unit. 00401_ K-01 Serf destroyed. 00402_ Acquired 20 matter. 00403_ Acquired 1 matter. 00420_ >> SKIM: World map updated: -10/Mines. 00420_ W-16 Scout sends out distress signal. 00421_ W-16 Scout knocked back. 00425_ Acquired 4 matter. Map ----- +----------------------------------------------------+ | ?????????????????????# ## | | ?????????????????????# " | | ?????????????????????######### #######+#####+### | | ?????????????????????????????# #?# # ? | | ??????###############????????# #?# # " | | ??????# #????????# #?# # " | | ??????# [[[ """ #??###???#^^^#?# # " | | ??????# [[[ "Y" ####T#####^^^### """ """ # | | ??????# [[[ + = *! + """ """ # | | ??????# ########## ### """ """ ##### | | ??????# #######??# #?# #???? | | #############+####### #??# #?###########???? | | # # #??# #????????????##?? | | # # #??# #???????????? ?? | | # "" + #??# #???????????? #? | | # "T # """ ##### #??# +???????????? #? | | # "" # """ #???#### ##??# %#???????????? #? | | # # """ #??????# #???### #????????????# #? | | ######## #??????# #?????# #????????????# #? | | ?????### #??????# #?????#=#????????????# #? | | ?????#"" " #??????# #?????#=#??????#+#???# #? | | ?????#"Y T #??????# #?????# #??????# ##### ## | | ?????#"" " #?? ??# #?????# #??????# | | ?????### #??""" # #?????# #??????# ######## | | ???????# #? """ #+####### #??????# #??????? | | ??#######+### #? """ # @ % # ######## #??????? | | ??# # # # g + #??????? | | ??# # # """ #""" # #??????? | | ??# + + """ #""" %# "T" #??????? | | ??# """ """ # # """ #""" #* #??????? | | ??# """ """ # # # %+! +??????? | | ??# """ """ # #? " " #""" #= #??????? | | ??# """ """ # #? "R" #""" % # != ##??????? | | ??? # #??""" #""" # = #??????## | | ????####???## #?? ??? # #??????# | | ????????????# #??????? ? # #??????# | | ????????????# #??????###???### [// #??????#" | | ????????????# #??????????????# [/ #??????#" | | ??????????# # #??????????????# [/ #??????#" | | ???????????# #??????????????# #??????# | | ???????????## #??????????????# ??????#" | | ????????????# #??????????????# < ### ??????#" | | ????????????#####??????????????# ????????????#" | | ????????????????????????????????####????????????# | | ????????????????????????????????????????????????# | | ????????????????????????????????????????????????# | | ????????????????????????????????????????????????## | | ?????????????????????????????????????????????????? | | | | | +----------------------------------------------------+ Best States ------------- Heat Dissipation 25 Energy Generation 5 Energy Capacity 100 Matter Stores 300 Matter Capacity 300 Sight Range 18 Terrain Scan Density 85 Evasion (%) 50 Item Schematics ----------------- None Robot Schematics ------------------ None Fabricated ------------ Nothing Alien Tech Used ----------------- None Achievements -------------- None Challenges ------------ None Game ------ Seed LargeCargoFlail Manual? 0 Play Time 00:08:25 Cumulative 81.0 hours Start 2024.11.10 @ 13:29:15 End 2024.11.10 @ 13:37:07 Sessions 1 Manual Loads 0 Difficulty Rogue Special Mode None Game No. 78 Rogue 78 Adventurer 0 Explorer 0 Win Type - Total 2 Types 2/0/0/0/0/0/0/0/0 Lore% 44 Gallery% 47 Achievement% 41 Wizard Run 0 Options --------- Layout 1 ASCII 0 Keyboard 1 Movement Arrows Keybinds 0 Fullscreen 2 Font 24/Smallcaps Map View 50x35 Zoom Use 0% Tactical HUD 1 Map Filters NONE Filters NONE Steam 1 RUN: 450abd18-2834-4e4c-8dec-17c09ffe6c98